Cogmind - Beta 13 @@@ ROGUE MODE // 2024.07.15 @ 17:37:00 Player: celerysam Result: Destroyed by G-47 Trooper with Particle Gun Performance ------------- Evolutions (1) 500 Regions Visited (2) 400 Robots Destroyed (5) 25 Value Destroyed (105) 105 Prototype IDs (2) 40 Alien Tech Used (0) 0 Bonus (0) 0 TOTAL SCORE: 1070 Bonus ------- None Cogmind --------- Core Integrity 0/400 Matter 190/300 Energy 98/100 System Corruption 0% Temperature Cool (10) Movement Treading (170) Location -9/Materials Parts ------- > --- POWER (1) -------- (None) > --- PROPULSION (4) --- Armored Treads > --- UTILITY (2) ------ (None) > --- WEAPON (2) ------- (None) > --- INVENTORY (5) ---- VTOL Module Advanced Weight Redist. System Structural Scanner Improved Targeting Computer System Shield Peak State ------------ > --- POWER ------------ Ion Engine > --- PROPULSION ------- Armored Treads Armored Treads Armored Treads Armored Treads > --- UTILITY ---------- Small Storage Unit Advanced Weight Redist. System > --- WEAPON ----------- Particle Gun > --- INVENTORY -------- Ion Engine Improved Targeting Computer ECM Suite System Shield [Rating: 19] Favorites ----------- Power Ion Engine Engine Ion Engine Propulsion Improved Hover Unit Treads Armored Treads Wheel Compact Wheel Hover Unit Improved Hover Unit Flight Unit Improved Flight Unit Utility Small Storage Unit Device Heat Sink Storage Small Storage Unit Weapon Hammer Energy Gun Particle Gun Impact Weapon Hammer Build | -11 -10 -9 ------- Run | Yrd Mat Mat Slots Evolved 2 | . . 2 Power . | . . . Propulsion 2 | . . 2 Utility . | . . . Weapon . | . . . Parts Attached 28 | 5 8 15 Power 6 | . 2 4 Engine 6 | . 2 4 Core . | . . . Reactor . | . . . Propulsion 13 | 2 3 8 Treads 4 | . . 4 Leg . | . . . Wheel 3 | 2 1 . Hover 4 | . 2 2 Flight 2 | . . 2 Utility 4 | 1 1 2 Device 3 | . 1 2 Storage 1 | 1 . . Processor . | . . . Hackware . | . . . Protection . | . . . Artifact . | . . . Weapon 5 | 2 2 1 Energy Gun 4 | 2 1 1 Energy Cannon . | . . . Ballistic Gun . | . . . Ballistic Cannon . | . . . Launcher . | . . . Special Weapon . | . . . Impact Weapon 1 | . 1 . Slashing Weapon . | . . . Piercing Weapon . | . . . Special Melee Weapon . | . . . Unidentified Prototypes 2 | . . 2 Parts Lost 15 | . 3 12 Power 3 | . 1 2 Propulsion 6 | . 1 5 Utility 3 | . . 3 Weapon 3 | . 1 2 Highest Loss Streak 5 | . 3 5 To Critical Strikes . | . . . Average Slot Usage (%) 75 | . 74 76 Engine 8 | . 7 8 Treads 10 | . . 17 Wheel 6 | . 16 . Hover 12 | . 4 18 Device 7 | . 7 8 Storage 12 | . 14 11 Energy Gun 8 | . 9 7 Impact Weapon 7 | . 14 3 Naked Turns . | . . . Heaviest Build 16 | 9 14 16 Greatest Support 80 | 26 26 80 Greatest Overweight (x) 4 | 1 4 2 Average Overweight (x) . | . . . Largest Inventory Capacity 8 | 8 8 8 Average Capacity 7 | 7 8 7 Most Carried 8 | 7 8 8 Average Carried 6 | 3 7 6 Final Capacity 8 | 8 8 5 Final Carried 8 | 7 8 5 Class Distribution -------------------- 100% | Mutant Dominant Class ---------------- Mutant | -10/Materials Mutant | -9/Materials Resources | -11 -10 -9 ----------- Run | Yrd Mat Mat Matter Collected 263 | 132 96 35 Remotely . | . . . Salvage Created 242 | . 189 53 Parts 8 | . 4 4 Haulers Intercepted 1 | . . 1 Recyclers Shooed 1 | . 1 . Parts Field Recycled . | . . . Retrieved Matter . | . . . Parts Self-Destructed . | . . . Prevented . | . . . Kills | -11 -10 -9 ------- Run | Yrd Mat Mat Combat Hostiles Destroyed 2 | . 2 . Melee 1 | . 1 . Guns 1 | . 1 . Classes Destroyed 4 | . 3 1 Hauler 1 | . . 1 Recycler 1 | . 1 . Watcher 1 | . 1 . Grunt 2 | . 2 . Best Kill Streak 2 | . 2 1 Combat Bots Only 1 | . 1 . Max Kills in Single Turn 1 | . 1 1 Gunslinging . | . . . Exploded . | . . . Melee 1 | . 1 . Uniques/NPCs Destroyed . | . . . Combat | -11 -10 -9 -------- Run | Yrd Mat Mat Hostile Shots Fired 218 | . 17 201 Missed 67 | . 2 65 Damage Taken 2363 | . 265 2098 Core 433 | . 28 405 Absorbed by Shields . | . . . Core Remaining (%) 94 | 100 88 . Volleys Fired 23 | . 14 9 Largest 2 | . 1 2 Hottest 105 | . 40 105 Shots Fired 25 | . 14 11 Gun 25 | . 14 11 Cannon . | . . . Launcher . | . . . Special . | . . . Kinetic . | . . . Thermal 9 | . . 9 Explosive . | . . . Electromagnetic 16 | . 14 2 Robot Hit Streak 4 | . 4 3 Robot Miss Streak 3 | . 3 2 Penetration Max . | . . . Secondary Targets . | . . . Shots Hit Robots 21 | . 13 8 Core Hits 8 | . 5 3 Critical Kills . | . . . Critical Parts Destroyed 1 | . 1 . Critical Strikes 4 | . 2 2 Burn 1 | . . 1 Corrupt 2 | . 1 1 Smash 1 | . 1 . Melee Attacks 10 | . 9 1 Impact 10 | . 9 1 Slashing . | . . . Piercing . | . . . Sneak Attacks 3 | . 2 1 Combat Hostiles . | . . . Follow-up Attacks . | . . . Damage Inflicted 582 | . 402 180 Guns 230 | . 120 110 Cannons . | . . . Explosions 83 | . 83 . Melee 262 | . 199 63 Ramming 7 | . . 7 Kinetic . | . . . Thermal 181 | . 83 98 Explosive . | . . . Electromagnetic 132 | . 120 12 Impact 262 | . 199 63 Slashing . | . . . Piercing . | . . . Highest Corruption . | . . . Average Corruption . | . . . Corruption Purged . | . . . Corruption Blocked . | . . . Overload Shots . | . . . Overflow Damage 77 | . 77 . Projectiles . | . . . Explosions . | . . . Melee 77 | . 77 . Knockbacks 1 | . 1 . Impact 1 | . 1 . Kinetic . | . . . Secondary . | . . . Self-Inflicted Damage 27 | . 27 . Shots 1 | . 1 . Rammed 10 | . . 10 Targets Rammed 10 | . . 10 Kicked . | . . . Crushed . | . . . Highest Temperature 93 | . 40 93 Average Temperature 27 | . 22 30 Received Heat Transfer 861 | . 132 729 Siege Activations . | . . . Robots Corrupted . | . . . Combat Hostiles . | . . . Parts Fried 2 | . 2 . Impact Corruptions 3 | . 3 . Robots Melted . | . . . Combat Hostiles . | . . . Parts Melted . | . . . Heat Transferred 346 | . 50 296 Parts Sabotaged . | . . . Parts Stolen . | . . . Parts Stripped . | . . . Power Chain Reactions 1 | . 1 . Alert | -11 -10 -9 ------- Run | Yrd Mat Mat Peak Influence 134 | . 54 134 Initial 22 | . . 22 Average 59 | . 39 85 Maximum Alert Level . | . . . Low Security (%) 100 | 100 100 100 Level 1 . | . . . Level 2 . | . . . Level 3 . | . . . Level 4 . | . . . Level 5 . | . . . High Security . | . . . Max Security . | . . . Squads Dispatched . | . . . Investigation . | . . . Extermination . | . . . Reinforcement . | . . . Assault . | . . . Garrison . | . . . Intercept . | . . . Searches Triggered . | . . . Construction Impeded . | . . . Haulers Reinforced . | . . . Active Scanning Responses . | . . . Cargo Convoy Interrupts . | . . . Stealth | -11 -10 -9 --------- Run | Yrd Mat Mat Distress Signals 1 | . 1 . Communications Jammed . | . . . Distress Signals . | . . . Times Spotted 21 | . 4 17 Peak Tracking Total 10 | . 3 10 Tactical Retreats 2 | . . 2 Traps | -11 -10 -9 ------- Run | Yrd Mat Mat Traps Triggered . | . . . Indirectly . | . . . Trap Hack Attempts . | . . . Triggered . | . . . Disarmed . | . . . Reprogrammed . | . . . Reused . | . . . Traps Extracted . | . . . Installed . | . . . Triggered . | . . . Machines | -11 -10 -9 ---------- Run | Yrd Mat Mat Machines Disabled . | . . . Max in Single Turn . | . . . Machines Repaired . | . . . Machines Dismantled . | . . . Machines Sabotaged . | . . . Overloaded Fab Kills . | . . . Hacking | -11 -10 -9 --------- Run | Yrd Mat Mat Machines Accessed 1 | . 1 . Terminals 1 | . 1 . Fabricators . | . . . Repair Stations . | . . . Recycling Units . | . . . Scanalyzers . | . . . Garrison Access . | . . . Total Hacks 1 | . 1 . Successful 1 | . 1 . Failed . | . . . Catastrophic . | . . . Database Lockouts . | . . . Manual . | . . . Terminals 1 | . 1 . Fabricators . | . . . Repair Stations . | . . . Recycling Units . | . . . Scanalyzers . | . . . Garrison Access . | . . . Terminal Hacks 1 | . 1 . Alert Level 1 | . 1 . Fabricator Hacks . | . . . Repair Station Hacks . | . . . Recycling Unit Hacks . | . . . Scanalyzer . | . . . Garrison Access Hacks . | . . . Unauthorized Hacks . | . . . Terminals . | . . . Fabricators . | . . . Repair Stations . | . . . Recycling Units . | . . . Scanalyzers . | . . . Garrison Access . | . . . Data Cores Recovered . | . . . Used . | . . . Hacking Detections . | . . . Full Trace Events . | . . . Feedback Events . | . . . Feedback Blocked . | . . . Robot Schematics Acquired . | . . . Robots Built . | . . . Authchips . | . . . Time . | . . . Total Robot Build Rating . | . . . Part Schematics Acquired . | . . . Parts Built . | . . . Authchips . | . . . Time . | . . . Total Part Build Rating . | . . . Parts Repaired . | . . . Time . | . . . Parts Recycled . | . . . Recycled Matter . | . . . Retrieved Matter . | . . . Retrieved Components . | . . . Parts Scanalyzed . | . . . Part Schematics Acquired . | . . . Parts Damaged . | . . . Bothacking | -11 -10 -9 ------------ Run | Yrd Mat Mat Used RIF Installer . | . . . Robots Hacked . | . . . Non-combat . | . . . Combat . | . . . Robot Hacks Applied . | . . . Relay Couplers Released . | . . . Fabnet Peak Effective % . | . . . Robots Rewired . | . . . Allies Hacked . | . . . Hacks Repelled . | . . . Allies | -11 -10 -9 -------- Run | Yrd Mat Mat Total Allies . | . . . Largest Group . | . . . Highest-Rated Group . | . . . Highest-Rated Ally . | . . . Total Orders . | . . . Ally Attacks . | . . . Total Damage . | . . . Kills . | . . . Allies Corrupted . | . . . Allies Melted . | . . . Intel | -11 -10 -9 ------- Run | Yrd Mat Mat Robot Analysis Total . | . . . Derelict Logs Recovered . | . . . Drone Launches . | . . . Drone Recoveries . | . . . Exploration | -11 -10 -9 ------------- Run | Yrd Mat Mat Turns Passed 526 | 61 183 282 Spaces Moved 455 | 51 133 271 Core 16 | 4 4 8 Treads 50 | . . 50 Legs . | . . . Wheels 127 | 47 80 . Hover 261 | . 49 212 Flight 1 | . . 1 Fastest Speed 48 | 50 56 48 Average Speed 79 | 87 84 75 Slowest Speed 250 | 100 250 180 Overloaded Moves . | . . . Propulsion Burnouts . | . . . Robots Hopped . | . . . Cave-ins Triggered . | . . . Exploration Rate (%) 22 | 3 32 31 Regions Visited 2 Branch Regions . Pre-discovered Areas . | . . . Known Exits Taken . | . . . Unknown Exits Taken 2 | 1 1 . Scrap Searched . | . . . Spaces Dug . | . . . Terrain Destroyed 6 | . 6 . Melee . | . . . Projectile . | . . . AOE 6 | . 6 . Terrain Rammed . | . . . Walls Destroyed . | . . . Machines Disabled . | . . . Actions | -11 -10 -9 --------- Run | Yrd Mat Mat Total 572 | 67 171 334 Wait 6 | . . 6 Move 453 | 50 132 271 Hop . | . . . Pick Up 27 | 12 5 10 Fast Attach 9 | . 4 5 Attach 17 | 5 3 9 Detach 1 | . . 1 Swap 2 | . 1 1 Drop 14 | . 3 11 Fire 23 | . 14 9 Melee 10 | . 9 1 Ram . | . . . Kick . | . . . Crush 10 | . . 10 Escape Stasis . | . . . Rewire . | . . . Trap . | . . . Miscellaneous . | . . . Route ------- -11/Scrapyard -10/Materials -9/Materials History --------- Turn | Location | Event 20 | -11/Scrapyard | Discovered new exit (range 15) 62 | -11/Scrapyard | Entered Materials 168 | -10/Materials | Lost 3 parts (1p1n1w) 230 | -10/Materials | Discovered new exit (range 16) 245 | -10/Materials | Entered another Materials area 245 | -9/Materials | Evolved 2 slots: Propulsion x2 366 | -9/Materials | Lost 3 parts (2n1u) 394 | -9/Materials | Build established: Mutant 454 | -9/Materials | Lost 5 parts (1p2n2w) 462 | -9/Materials | Core integrity fell below 50% 502 | -9/Materials | Core integrity fell below 20% 527 | -9/Materials | Destroyed by G-47 Trooper with Particle Gun Last Messages --------------- 00424_ Slammed into Y-45 Defender. 00426_ Critical hit (Burn: +37). 00427_ Slammed into G-47 Trooper. 00432_ Slammed into Y-45 Defender. 00441_ G-34 Mercenary destroyed. 00460_ Acquired VTOL Module. 00461_ Slammed into L-31 Rogue. 00471_ Slammed into Y-45 Defender. 00475_ R-06 Scavenger collects Heat Sink. 00476_ Y-45 Defender destroyed. 00476_ Acquired 35 matter. 00488_ ECM Suite destroyed. 00494_ M-13 Machinist repairs L-31 Rogue. 00496_ Ion Engine destroyed. 00500_ Arm. Treads severed. 00508_ M-13 Machinist repairs G-34 Mercenary. 00508_ Arm. Treads severed. 00523_ Sml. Storage Unit destroyed. 00523_ Arm. Treads destroyed. 00523_ Critical hit (Burn: +37). Map ----- +----------------------------------------------------+ | ?????????????????????????????????????????????????? | | ?????????????????????????????????????????????????? | | ?????????????????????????????????????????????????? | | ?????????????????????????????????????????????????? | | ?????????????????????????????????????????????????? | | ?????????????????????????????????????????????????? | | ?????????????????????????????????????????????????? | | ?????????????????????????????????????????????????? | | ?????????????????????????????????????????????????? | | ?????????????????????????????????????????????????? | | ?????????????????????????????????????????????????? | | ?????????????????????????????????????????????????? | | ?????????????????????????????????????????????????? | | ?????????????????????????????????????????????????? | | ?????????????????????????????????????????????????? | | ?????????????????????????????????????????????????? | | ?????????????????????????????????????????????????? | | ?????????????????????????????????????????????????? | | ?????????????????????###+####????????????????????? | | ?????????????????????# #????????????????????? | | ?????????????????????# #????????????????????? | | ?????????????????????# """#????#???????????????? | | ?????????????????????# """#??? #???????????????? | | ???????????#########?# """#?? #???????????????? | | ???????????# ??? ?? ##??????????????? | | ???????????# ####@### ###????????????? | | ???????????# # ?????????? | | ???????????# /l T ?????????? | | ???????????# """"" # ???????????? | | ??????????????""""" # #### ####???????????? | | ???????????????"""" ?#g #???##+###??????????????? | | ??????????????? ?# #???????????????????????? | | ??????????????#####??#g #???????????????????????? | | ?????????????????????# #???????????????????????? | | ?????????????????????# #???????????????????????? | | ?????????????????????#YYg#???????????????????????? | | ?????????????????????# YY#???????????????????????? | | ??????????????????# #???????????????????????? | | ??????????????????# #???????????????????????? | | #?????????????????#w #???????????????????????? | | ############?##### = #???????????????????????? | | # ## #?# #######?????????????????? | | # "" ## #?# ^+????????????????? | | # "" # #?# ###########?????????????????? | | # "T ## #?# #???????????????????????????? | | ## "" ## #?# #???????????????????????????? | | ## "" ## #?# #???????????????????????????? | | ## ## ### ##??????????????????????????? | | ###/######/### #??????????????????????????? | | % #??????????????????????????? | +----------------------------------------------------+ Best States ------------- Heat Dissipation 38 Energy Generation 10 Energy Capacity 250 Matter Stores 273 Matter Capacity 300 Sight Range 16 Terrain Scan Density 10 ECM Strength 1 Additional Mass Support 9 Evasion (%) 55 Recoil Reduction 4 Item Schematics ----------------- None Robot Schematics ------------------ None Fabricated ------------ Nothing Alien Tech Used ----------------- None Achievements -------------- None Challenges ------------ None Game ------ Seed RecyclingSignalFlail Manual? 0 Play Time 00:12:59 Cumulative 101.7 hours Start 2024.07.15 @ 17:23:37 End 2024.07.15 @ 17:37:00 Sessions 1 Manual Loads 0 Difficulty Rogue Special Mode None Game No. 146 Rogue 146 Adventurer 0 Explorer 0 Win Type - Total 0 Types 0/0/0/0/0/0/0/0/0 Lore% 44 Gallery% 57 Achievement% 36 Wizard Run 0 Options --------- Layout 0 ASCII 0 Keyboard 0 Movement Mouse Keybinds 0 Fullscreen 1 Font 24/Smallcaps Map View 76x50 Zoom Use 0% Tactical HUD 1 Map Filters NONE Filters NONE Steam 1 RUN: 4f7ebbb9-75f1-4000-ad2b-cfa6ea0e9942